[Event "RUS-chTW Premier 2019"]
[Site "Sochi"]
[Date "2019.05.07"]
[Round "6.15"]
[White "Tomashevskaya, Lidia"]
[Black "Bivol, Alina"]
[Result "0-1"]
[ECO "C10"]
[WhiteElo "2128"]
[BlackElo "2393"]
[Annotator "NA"]
[PlyCount "80"]
[EventDate "2019.05.01"]
[EventType "team-tourn"]
[EventCountry "RUS"]
[SourceTitle "playchess.com"]
[Source "ChessBase"]
[SourceQuality "1"]
[TimeControl "40/5400+30:1800+30"]

1. e4 {[%emt 0:00:00]} e6 {[%emt 0:00:00]} 2. d4 {[%emt 0:00:00]} d5 {[%emt 0:00:00]} 3. Nc3 {[%emt 0:00:00]} dxe4 {[%emt 0:00:05]} 4. Nxe4 {[%emt 0:00:00]} Nd7 {[%emt 0:00:31]} 5. Nf3 {[%emt 0:00:31]} Ngf6 {[%emt 0:00:14]} 6. Bg5 {[%emt 0:01:30]} Be7 {[%emt 0:00:21]} 7. Nxf6+ {[%emt 0:04:44]} Bxf6 {[%emt 0:00:41]} 8. Qd2 {[%emt 0:03:35]} Bxg5 {[%emt 0:02:50]} 9. Nxg5 {[%emt 0:01:57]} Nf6 {[%emt 0:00:27]} 10. Bd3 {[%emt 0:01:39]} Bd7 {[%emt 0:03:09]} 11. c3 {[%emt 0:04:03]} Bc6 {[%emt 0:01:43]} 12. f3 {[%emt 0:01:19]} h6 {[%emt 0:01:51]} 13. Nh3 {[%emt 0:00:20]} Qd6 {[%emt 0:03:11]} 14. O-O-O {[%emt 0:03:16]} a5 {[%emt 0:01:02]} 15. Nf2 {[%emt 0:05:04]} b5 {[%emt 0:07:15]} 16. Ne4 {[%emt 0:04:30]} Nxe4 {[%emt 0:00:22]} 17. fxe4 {[%emt 0:00:29]} e5 {[%emt 0:06:25]} 18. Qf2 {[%emt 0:07:05]} O-O {[%emt 0:07:23]} 19. Qf5 {[%emt 0:03:07]} Rae8 {[%emt 0:01:23]} 20. Bc2 {[%emt 0:04:00]} Bd7 {[%emt 0:07:26]} 21. Qh5 {[%emt 0:12:12]} exd4 {[%emt 0:06:25]} 22. Rxd4 {[%emt 0:00:06]} Qf4+ {[%emt 0:00:36]} 23. Kb1 {[%emt 0:00:06]} Bc6 {[%emt 0:04:36]} 24. Bd3 {[%emt 0:19:29]} Re5 {[%emt 0:02:09]} 25. Qf3 {[%emt 0:00:26]} Qh4 {[%emt 0:02:12]} 26. g4 {[%emt 0:03:31]} Rfe8 {[%emt 0:02:09]} 27. Rf1 {[%emt 0:01:15]} Qe7 {[%emt 0:00:15]} 28. Ka1 {[%emt 0:02:05]} Bb7 {[%emt 0:00:35]} 29. b4 {[%emt 0:04:56]} c5 {[%emt 0:05:08]} 30. bxc5 {[%emt 0:00:05]} Rxc5 {[%emt 0:00:21]} 31. Bc2 {[%emt 0:01:35]} a4 {[%emt 0:06:56]} 32. Qd3 {[%emt 0:01:13]} Bc8 {[%emt 0:05:38]} 33. e5 {[%emt 0:04:00]} g6 {[%emt 0:00:27]} 34. Rd6 {[%emt 0:04:23]} Be6 {[%emt 0:09:44]} 35. Rf6 {[%emt 0:03:21]} Rxe5 {[%emt 0:01:03]} 36. Rxg6+ {[%emt 0:00:45]} fxg6 {[%emt 0:00:01]} 37. Qxg6+ {[%emt 0:00:08]} Kf8 {[%emt 0:00:15]} 38. Qxh6+ {[%emt 0:01:37]} Qg7 {[%emt 0:00:22]} 39. Qf4+ {[%emt 0:00:11]} Kg8 {[%emt 0:00:18]} 40. Ra6 {[%emt 0:00:00]} Rc5 {[%emt 0:00:00]} 0-1

[Event "RUS-chTW Premier 2019"]
[Site "Sochi"]
[Date "2019.05.07"]
[Round "6.16"]
[White "Voit, Daria"]
[Black "Tishova, Svetlana"]
[Result "1-0"]
[ECO "A46"]
[WhiteElo "2340"]
[BlackElo "2093"]
[Annotator "NA"]
[PlyCount "91"]
[EventDate "2019.05.01"]
[EventType "team-tourn"]
[EventCountry "RUS"]
[SourceTitle "playchess.com"]
[Source "ChessBase"]
[SourceQuality "1"]
[TimeControl "40/5400+30:1800+30"]

1. d4 {[%emt 0:00:00]} Nf6 {[%emt 0:00:00]} 2. Nf3 {[%emt 0:00:00]} d5 {[%emt 0:00:04]} 3. g3 {[%emt 0:00:00]} Bf5 {[%emt 0:00:35]} 4. Bg2 {[%emt 0:00:09]} c6 {[%emt 0:00:58]} 5. O-O {[%emt 0:00:38]} h6 {[%emt 0:00:30]} 6. c4 {[%emt 0:00:21]} e6 {[%emt 0:00:54]} 7. Nc3 {[%emt 0:02:39]} Nbd7 {[%emt 0:02:13]} 8. Qb3 {[%emt 0:08:52]} Qb6 {[%emt 0:00:34]} 9. c5 {[%emt 0:00:22]} Qxb3 {[%emt 0:02:50]} 10. axb3 {[%emt 0:00:04]} a6 {[%emt 0:00:10]} 11. b4 {[%emt 0:00:10]} Rc8 {[%emt 0:00:24]} 12. h3 {[%emt 0:00:28]} Bh7 {[%emt 0:03:26]} 13. g4 {[%emt 0:01:49]} Be7 {[%emt 0:19:43]} 14. Bf4 {[%emt 0:00:30]} Bd8 15. Nd2 {[%emt 0:00:46]} g5 {[%emt 0:07:59]} 16. Bd6 {[%emt 0:00:47]} h5 {[%emt 0:12:39]} 17. f3 {[%emt 0:06:20]} Nf8 {[%emt 0:09:31]} 18. e4 {[%emt 0:28:55]} Ng6 {[%emt 0:03:00]} 19. exd5 {[%emt 0:09:05]} exd5 {[%emt 0:05:23]} 20. b5 {[%emt 0:09:33]} axb5 {[%emt 0:05:18]} 21. Ra7 {[%emt 0:07:09]} Bc7 {[%emt 0:01:35]} 22. Rxb7 {[%emt 0:01:58]} Bxd6 {[%emt 0:01:14]} 23. cxd6 {[%emt 0:00:02]} O-O {[%emt 0:01:30]} 24. Ra1 {[%emt 0:03:27]} Nf4 {[%emt 0:01:58]} 25. Nb3 {[%emt 0:03:15]} Rcd8 {[%emt 0:03:44]} 26. Rb6 {[%emt 0:07:28]} Rxd6 {[%emt 0:06:46]} 27. Nxb5 {[%emt 0:00:10]} Re6 {[%emt 0:01:53]} 28. Nc3 {[%emt 0:00:35]} Rfe8 {[%emt 0:02:39]} 29. Bf1 {[%emt 0:04:40]} Nd7 {[%emt 0:05:14]} 30. Rb7 {[%emt 0:00:30]} Nf8 {[%emt 0:00:19]} 31. Kf2 {[%emt 0:00:51]} N8g6 {[%emt 0:01:53]} 32. Raa7 {[%emt 0:00:42]} R6e7 {[%emt 0:00:14]} 33. Na5 {[%emt 0:00:46]} Rxb7 {[%emt 0:00:09]} 34. Rxb7 {[%emt 0:00:02]} Re6 {[%emt 0:00:30]} 35. Na4 {[%emt 0:00:41]} Rf6 {[%emt 0:01:10]} 36. Nc5 {[%emt 0:00:05]} Nf8 {[%emt 0:00:16]} 37. Rb8 {[%emt 0:01:35]} Kg7 {[%emt 0:00:39]} 38. Rc8 {[%emt 0:01:10]} hxg4 {[%emt 0:00:19]} 39. hxg4 {[%emt 0:00:03]} N4e6 {[%emt 0:00:45]} 40. Nxc6 {[%emt 0:00:00]} Be4 {[%emt 0:00:00]} 41. Be2 {[%emt 0:01:53]} Ng6 {[%emt 0:14:08]} 42. Ke3 {[%emt 0:04:58]} Bb1 {[%emt 0:00:23]} 43. Nd7 {[%emt 0:02:03]} Rf4 {[%emt 0:00:10]} 44. b4 {[%emt 0:00:12]} Nh4 {[%emt 0:00:51]} 45. b5 {[%emt 0:00:46]} Ng2+ {[%emt 0:01:36]} 46. Kf2 {[%emt 0:00:12]} 1-0

[Event "RUS-chTW Premier 2019"]
[Site "Sochi"]
[Date "2019.05.08"]
[Round "7.1"]
[White "Ambartsumova, Karina"]
[Black "Bodnaruk, Anastasia"]
[Result "0-1"]
[ECO "A05"]
[WhiteElo "2364"]
[BlackElo "2431"]
[Annotator "RC"]
[PlyCount "97"]
[EventDate "2019.04.30"]
[EventType "team-tourn"]
[EventCountry "RUS"]
[SourceTitle "playchess.com"]
[Source "ChessBase"]
[SourceQuality "1"]
[TimeControl "40/5400+30:1800+30"]

1. Nf3 {[%emt 0:00:00]} Nf6 {[%emt 0:00:00]} 2. g3 {[%emt 0:00:27]} g6 {[%emt 0:00:00]} 3. d4 {[%emt 0:00:47]} Bg7 {[%emt 0:00:07]} 4. Bg2 {[%emt 0:00:32]} O-O {[%emt 0:00:10]} 5. O-O {[%emt 0:00:51]} d6 {[%emt 0:00:16]} 6. b3 {[%emt 0:00:27]} Nc6 {[%emt 0:08:54]} 7. Bb2 {[%emt 0:03:01]} e5 {[%emt 0:00:27]} 8. dxe5 {[%emt 0:01:37]} Ng4 {[%emt 0:00:05]} 9. Qc1 {[%emt 0:09:54]} dxe5 {[%emt 0:06:25]} 10. h3 Nh6 11. Rd1 {[%emt 0:20:21]} Bd7 {[%emt 0:00:47]} 12. Nbd2 {[%emt 0:01:56]} Qc8 {[%emt 0:05:52]} 13. Kh2 {[%emt 0:02:21]} Nf5 {[%emt 0:04:26]} 14. Ne4 {[%emt 0:07:12]} b6 {[%emt 0:19:07]} 15. e3 {[%emt 0:07:14]} Nfe7 {[%emt 0:06:39]} 16. Nc3 {[%emt 0:09:13]} f6 {[%emt 0:15:37]} 17. Nd5 {[%emt 0:10:53]} Nxd5 {[%emt 0:01:40]} 18. Rxd5 {[%emt 0:00:01]} Ne7 {[%emt 0:02:08]} 19. Rd2 {[%emt 0:01:20]} Bc6 {[%emt 0:05:32]} 20. Qf1 {[%emt 0:04:39]} Qe6 {[%emt 0:02:43]} 21. Rad1 {[%emt 0:01:15]} Nf5 {[%emt 0:05:16]} 22. Ba3 {[%emt 0:06:44]} Rfe8 {[%emt 0:00:48]} 23. Ng1 {[%emt 0:01:17]} e4 {[%emt 0:01:52]} 24. Ne2 {[%emt 0:00:14]} g5 {[%emt 0:04:03]} 25. Nd4 {[%emt 0:02:34]} Nxd4 {[%emt 0:00:05]} 26. exd4 {[%emt 0:00:07]} Rad8 {[%emt 0:03:01]} 27. c4 {[%emt 0:01:15]} Qf7 {[%emt 0:00:06]} 28. d5 {[%emt 0:02:43]} Bd7 {[%emt 0:03:14]} 29. Bb2 {[%emt 0:01:57]} Bf8 {[%emt 0:03:10]} 30. Re2 {[%emt 0:00:44]} f5 {[%emt 0:00:32]} 31. Qe1 {[%emt 0:02:50]} Bd6 {[%emt 0:00:47]} 32. Qc3 {[%emt 0:00:03]} Be5 {[%emt 0:01:12]} 33. Qd2 {[%emt 0:00:25]} Qg6 {[%emt 0:00:55]} 34. Bxe5 Rxe5 {[%emt 0:00:01]} 35. f4 {[%emt 0:01:49]} gxf4 {[%emt 0:00:46]} 36. gxf4 {[%emt 0:00:21]} Re7 {[%emt 0:00:17]} 37. Bxe4 {[%emt 0:00:16]} fxe4 {[%emt 0:00:52]} 38. Rg2 {[%emt 0:00:24]} e3 {[%emt 0:00:31]} 39. Qd3 {[%emt 0:00:55]} Kf7 {[%emt 0:00:30]} 40. Rxg6 {[%emt 0:00:00]} hxg6 {[%emt 0:00:00]} 41. Kg3 {[%emt 0:17:17]} Bf5 {[%emt 0:18:08]} 42. Qe2 {[%emt 0:02:50]} Re4 {[%emt 0:03:26]} 43. a3 {[%emt 0:04:50]} a5 {[%emt 0:04:43]} 44. h4 {[%emt 0:03:05]} Rh8 {[%emt 0:01:02]} 45. Rd3 {[%emt 0:01:50]} g5 {[%emt 0:01:35]} 46. hxg5 {[%emt 0:02:30]} Ree8 {[%emt 0:02:38]} 47. Qb2 {[%emt 0:01:49]} e2 {[%emt 0:01:18]} 48. Qf6+ {[%emt 0:00:39]} Kg8 {[%emt 0:00:01]} 49. Re3 {[%emt 0:01:01]} 0-1

[Event "RUS-chTW Premier 2019"]
[Site "Sochi"]
[Date "2019.05.08"]
[Round "7.3"]
[White "Shafigullina, Zarina"]
[Black "Belenkaya, Dina"]
[Result "1-0"]
[ECO "D02"]
[WhiteElo "2299"]
[BlackElo "2315"]
[Annotator "NA RC"]
[PlyCount "99"]
[EventDate "2019.04.30"]
[EventType "team-tourn"]
[EventCountry "RUS"]
[SourceTitle "playchess.com"]
[Source "ChessBase"]
[SourceQuality "1"]
[TimeControl "40/5400+30:1800+30"]

1. d4 {[%emt 0:00:00]} d5 {[%emt 0:00:00]} 2. Nf3 {[%emt 0:00:00]} Nf6 {[%emt 0:00:00]} 3. g3 {[%emt 0:00:00]} c5 {[%emt 0:00:22]} 4. Bg2 {[%emt 0:02:52]} cxd4 {[%emt 0:00:54]} 5. Nxd4 {[%emt 0:00:07]} e5 {[%emt 0:00:38]} 6. Nf3 {[%emt 0:00:05]} Nc6 {[%emt 0:01:04]} 7. O-O {[%emt 0:00:21]} h6 {[%emt 0:08:34]} 8. c4 {[%emt 0:09:43]} Be6 {[%emt 0:01:53]} 9. cxd5 {[%emt 0:00:17]} Nxd5 {[%emt 0:00:26]} 10. Nfd2 {[%emt 0:10:11]} Be7 {[%emt 0:01:22]} 11. Ne4 {[%emt 0:00:33]} O-O {[%emt 0:00:52]} 12. Nbc3 {[%emt 0:01:40]} Nxc3 {[%emt 0:08:15]} 13. Nxc3 {[%emt 0:00:13]} Qa5 {[%emt 0:03:06]} 14. Nd5 {[%emt 0:03:58]} Bc5 {[%emt 0:14:11]} 15. Bd2 {[%emt 0:08:44]} Qd8 {[%emt 0:00:43]} 16. Bc3 {[%emt 0:00:27]} Nd4 {[%emt 0:02:37]} 17. Nb4 {[%emt 0:04:07]} Qb6 {[%emt 0:01:47]} 18. Nd3 {[%emt 0:08:49]} Rfd8 {[%emt 0:01:46]} 19. Kh1 {[%emt 0:03:25]} Nc6 {[%emt 0:02:53]} 20. Qa4 {[%emt 0:01:55]} Bd6 {[%emt 0:05:10]} 21. f4 {[%emt 0:03:25]} Bd7 {[%emt 0:04:40]} 22. fxe5 {[%emt 0:01:58]} Nb4 {[%emt 0:13:12]} 23. Qd1 {[%emt 0:01:53]} Be7 {[%emt 0:00:53]} 24. Bxb4 {[%emt 0:02:11]} Bxb4 {[%emt 0:00:18]} 25. Qb3 {[%emt 0:00:08]} a5 {[%emt 0:07:48]} 26. Qxf7+ {[%emt 0:00:15]} Kh8 {[%emt 0:00:04]} 27. Nf4 {[%emt 0:02:29]} Be8 {[%emt 0:01:37]} 28. Qf5 {[%emt 0:06:59]} Rd4 {[%emt 0:06:53]} 29. e3 {[%emt 0:11:49]} Rd2 {[%emt 0:00:26]} 30. Be4 {[%emt 0:04:32]} g6 {[%emt 0:00:11]} 31. Qh3 {[%emt 0:03:27]} Kh7 {[%emt 0:00:39]} 32. Nd5 {[%emt 0:00:17]} Rxd5 {[%emt 0:07:46]} 33. Bxd5 {[%emt 0:00:05]} Rd8 {[%emt 0:00:26]} 34. e4 {[%emt 0:02:22]} Be7 {[%emt 0:00:37]} 35. Qe6 {[%emt 0:02:02]} Qxe6 {[%emt 0:00:07]} 36. Bxe6 {[%emt 0:00:01]} b6 {[%emt 0:00:50]} 37. Rad1 {[%emt 0:00:33]} Kg7 {[%emt 0:02:43]} 38. Rxd8 {[%emt 0:02:22]} Bxd8 {[%emt 0:00:02]} 39. Rd1 {[%emt 0:00:11]} Be7 {[%emt 0:02:04]} 40. Bd7 {[%emt 0:00:00]} Bf7 {[%emt 0:00:00]} 41. e6 {[%emt 0:00:10]} Bg8 {[%emt 0:00:06]} 42. e5 {[%emt 0:00:07]} Bc5 {[%emt 0:00:52]} 43. Bc8 {[%emt 0:01:38]} Be7 {[%emt 0:00:41]} 44. Rd7 {[%emt 0:00:49]} Kf8 {[%emt 0:00:04]} 45. Rb7 {[%emt 0:00:23]} Bc5 {[%emt 0:00:18]} 46. Kg2 {[%emt 0:00:44]} Bd4 {[%emt 0:00:50]} 47. e7+ {[%emt 0:06:30]} Ke8 {[%emt 0:00:16]} 48. Rd7 {[%emt 0:00:05]} Be6 {[%emt 0:02:14]} 49. Rxd4 {[%emt 0:00:06]} Bxc8 {[%emt 0:00:05]} 50. Rd8+ {[%emt 0:00:04]} 1-0

[Event "RUS-chTW Premier 2019"]
[Site "Sochi"]
[Date "2019.05.08"]
[Round "7.4"]
[White "Balaian, Alina"]
[Black "Bulatova, Kamaliya"]
[Result "1/2-1/2"]
[ECO "B90"]
[WhiteElo "2250"]
[BlackElo "2103"]
[Annotator "NA RC"]
[PlyCount "49"]
[EventDate "2019.04.30"]
[EventType "team-tourn"]
[EventCountry "RUS"]
[SourceTitle "playchess.com"]
[Source "ChessBase"]
[SourceQuality "1"]
[TimeControl "40/5400+30:1800+30"]

1. e4 {[%emt 0:00:00]} c5 {[%emt 0:00:00]} 2. Nf3 {[%emt 0:00:00]} d6 {[%emt 0:00:00]} 3. d4 {[%emt 0:00:00]} cxd4 {[%emt 0:00:00]} 4. Nxd4 {[%emt 0:00:00]} Nf6 {[%emt 0:00:00]} 5. Nc3 {[%emt 0:00:00]} a6 {[%emt 0:00:00]} 6. Be3 {[%emt 0:00:19]} e5 {[%emt 0:00:00]} 7. Nb3 {[%emt 0:00:16]} Be6 {[%emt 0:00:06]} 8. f3 {[%emt 0:00:26]} Be7 {[%emt 0:00:18]} 9. Qd2 {[%emt 0:00:27]} O-O {[%emt 0:00:35]} 10. O-O-O {[%emt 0:00:24]} Nbd7 {[%emt 0:00:05]} 11. g4 {[%emt 0:00:28]} b5 {[%emt 0:00:04]} 12. g5 {[%emt 0:00:15]} Nh5 {[%emt 0:00:05]} 13. Nd5 {[%emt 0:00:39]} Bxd5 {[%emt 0:00:10]} 14. exd5 {[%emt 0:00:09]} f6 {[%emt 0:01:22]} 15. gxf6 {[%emt 0:00:10]} Bxf6 {[%emt 0:05:42]} 16. Na5 {[%emt 0:01:04]} Qe8 {[%emt 0:00:41]} 17. Kb1 {[%emt 0:07:48]} Bd8 {[%emt 0:06:03]} 18. Nc6 {[%emt 0:08:12]} Bb6 {[%emt 0:09:01]} 19. Bg5 {[%emt 0:04:19]} Rxf3 {[%emt 0:16:10]} 20. Be2 {[%emt 0:00:27]} Rf2 {[%emt 0:00:50]} 21. Bh4 {[%emt 0:00:48]} Rf4 {[%emt 0:06:02]} 22. Bg5 {[%emt 0:01:38]} Rf2 {[%emt 0:04:36]} 23. Bh4 {[%emt 0:02:25]} Rf4 {[%emt 0:07:01]} 24. Bg5 {[%emt 0:02:06]} Rf2 {[%emt 0:00:37]} 25. Bh4 {[%emt 0:02:31]} 1/2-1/2

[Event "RUS-chTW Premier 2019"]
[Site "Sochi"]
[Date "2019.05.08"]
[Round "7.5"]
[White "Ushenina, Anna"]
[Black "Schepetkova, Margarita"]
[Result "1/2-1/2"]
[ECO "D11"]
[WhiteElo "2442"]
[BlackElo "2224"]
[Annotator "NA RC"]
[PlyCount "84"]
[EventDate "2019.04.30"]
[EventType "team-tourn"]
[EventCountry "RUS"]
[SourceTitle "playchess.com"]
[Source "ChessBase"]
[SourceQuality "1"]
[TimeControl "40/5400+30:1800+30"]

1. d4 {[%emt 0:00:00]} d5 {[%emt 0:00:00]} 2. Nf3 {[%emt 0:00:00]} Nf6 {[%emt 0:00:00]} 3. c4 {[%emt 0:00:12]} c6 {[%emt 0:00:01]} 4. e3 {[%emt 0:00:06]} Bg4 {[%emt 0:01:38]} 5. cxd5 {[%emt 0:00:34]} Bxf3 {[%emt 0:00:30]} 6. Qxf3 {[%emt 0:00:05]} cxd5 {[%emt 0:00:07]} 7. Nc3 {[%emt 0:00:10]} Nc6 {[%emt 0:02:57]} 8. Bd3 {[%emt 0:00:11]} e6 {[%emt 0:00:36]} 9. O-O {[%emt 0:00:34]} Be7 {[%emt 0:04:00]} 10. Bd2 {[%emt 0:00:33]} O-O {[%emt 0:01:23]} 11. Rfc1 {[%emt 0:00:40]} e5 {[%emt 0:12:21]} 12. dxe5 {[%emt 0:00:35]} Nxe5 {[%emt 0:00:10]} 13. Qf5 {[%emt 0:00:04]} Nxd3 {[%emt 0:00:18]} 14. Qxd3 {[%emt 0:00:01]} Qd7 {[%emt 0:02:31]} 15. Qb5 {[%emt 0:22:29]} Qf5 {[%emt 0:08:20]} 16. Be1 {[%emt 0:17:38]} Bd6 {[%emt 0:03:16]} 17. Rd1 {[%emt 0:03:50]} Rad8 {[%emt 0:10:19]} 18. g3 {[%emt 0:03:21]} a6 {[%emt 0:08:23]} 19. Qd3 {[%emt 0:02:20]} Qh3 {[%emt 0:00:56]} 20. Qf1 {[%emt 0:03:14]} Qxf1+ {[%emt 0:04:05]} 21. Kxf1 {[%emt 0:00:02]} Be5 {[%emt 0:00:09]} 22. Ne2 {[%emt 0:06:04]} Bxb2 {[%emt 0:00:35]} 23. Rab1 {[%emt 0:00:03]} Be5 {[%emt 0:00:04]} 24. Rxb7 {[%emt 0:00:11]} Rb8 {[%emt 0:00:06]} 25. Rdb1 {[%emt 0:06:31]} Rxb7 {[%emt 0:00:08]} 26. Rxb7 {[%emt 0:00:02]} Rb8 {[%emt 0:00:12]} 27. Ra7 {[%emt 0:04:06]} h5 {[%emt 0:00:46]} 28. Rxa6 {[%emt 0:01:07]} Rb1 {[%emt 0:01:04]} 29. f3 {[%emt 0:00:40]} g5 {[%emt 0:01:20]} 30. Kf2 {[%emt 0:09:11]} g4 {[%emt 0:00:22]} 31. Bc3 {[%emt 0:02:15]} gxf3 {[%emt 0:05:04]} 32. Kxf3 {[%emt 0:10:32]} Ng4 {[%emt 0:00:55]} 33. Bxe5 {[%emt 0:03:35]} Rf1+ {[%emt 0:00:42]} 34. Kg2 {[%emt 0:00:03]} Rf2+ {[%emt 0:00:05]} 35. Kg1 {[%emt 0:00:05]} Rxe2 {[%emt 0:00:03]} 36. Bd4 {[%emt 0:00:35]} Nxh2 {[%emt 0:04:23]} 37. Ra5 {[%emt 0:02:45]} Rd2 {[%emt 0:03:38]} 38. Rxd5 {[%emt 0:00:20]} Nf3+ {[%emt 0:00:18]} 39. Kf1 {[%emt 0:00:02]} Nh2+ {[%emt 0:00:21]} 40. Ke1 {[%emt 0:00:00]} Nf3+ {[%emt 0:00:00]} 41. Kf1 {[%emt 0:00:05]} Nh2+ {[%emt 0:00:09]} 42. Ke1 {[%emt 0:00:05]} Nf3+ {[%emt 0:00:06]} 1/2-1/2

[Event "RUS-chTW Premier 2019"]
[Site "Sochi"]
[Date "2019.05.08"]
[Round "7.8"]
[White "Azimova, Karina"]
[Black "Kovanova, Baira"]
[Result "0-1"]
[ECO "C41"]
[WhiteElo "2072"]
[BlackElo "2349"]
[Annotator "NA RC"]
[PlyCount "70"]
[EventDate "2019.04.30"]
[EventType "team-tourn"]
[EventCountry "RUS"]
[SourceTitle "playchess.com"]
[Source "ChessBase"]
[SourceQuality "1"]
[TimeControl "40/5400+30:1800+30"]

1. e4 {[%emt 0:00:00]} e5 {[%emt 0:00:00]} 2. Nf3 {[%emt 0:00:00]} d6 {[%emt 0:00:00]} 3. d4 {[%emt 0:00:00]} exd4 {[%emt 0:00:00]} 4. Nxd4 {[%emt 0:00:00]} Nf6 {[%emt 0:00:00]} 5. Nc3 {[%emt 0:00:00]} Be7 {[%emt 0:00:00]} 6. g3 {[%emt 0:00:00]} O-O {[%emt 0:01:51]} 7. Bg2 {[%emt 0:00:00]} Re8 {[%emt 0:00:27]} 8. O-O {[%emt 0:00:00]} h6 {[%emt 0:00:41]} 9. Re1 {[%emt 0:00:06]} Bf8 {[%emt 0:02:42]} 10. h3 {[%emt 0:01:40]} c6 {[%emt 0:02:35]} 11. a4 {[%emt 0:00:57]} a5 {[%emt 0:03:19]} 12. g4 {[%emt 0:00:40]} Nh7 {[%emt 0:05:10]} 13. Bf4 {[%emt 0:02:15]} Nd7 {[%emt 0:09:13]} 14. Qd2 {[%emt 0:07:45]} Ne5 {[%emt 0:01:59]} 15. Rad1 {[%emt 0:10:14]} Ng5 {[%emt 0:09:53]} 16. Qe3 {[%emt 0:12:05]} Qf6 {[%emt 0:11:27]} 17. Bg3 {[%emt 0:05:05]} Nc4 {[%emt 0:04:03]} 18. Qc1 {[%emt 0:00:31]} d5 {[%emt 0:05:32]} 19. f4 {[%emt 0:09:32]} Nxe4 {[%emt 0:05:02]} 20. Nxe4 {[%emt 0:09:09]} dxe4 {[%emt 0:00:09]} 21. Bxe4 {[%emt 0:00:13]} Bc5 {[%emt 0:04:07]} 22. c3 {[%emt 0:00:44]} Nd6 {[%emt 0:02:44]} 23. Bg2 {[%emt 0:02:28]} Be6 {[%emt 0:03:36]} 24. Kh2 {[%emt 0:04:55]} Bd5 {[%emt 0:04:21]} 25. Bxd5 {[%emt 0:04:41]} cxd5 {[%emt 0:00:24]} 26. Nb3 {[%emt 0:00:26]} Rxe1 {[%emt 0:02:55]} 27. Bxe1 {[%emt 0:00:45]} Bb6 {[%emt 0:01:38]} 28. Rxd5 {[%emt 0:04:16]} Qe6 {[%emt 0:01:45]} 29. Qd1 {[%emt 0:00:37]} Nc4 {[%emt 0:01:52]} 30. f5 {[%emt 0:09:50]} Qe4 {[%emt 0:05:19]} 31. Rb5 {[%emt 0:03:58]} Rd8 {[%emt 0:02:53]} 32. Nd4 {[%emt 0:06:10]} Bxd4 {[%emt 0:00:10]} 33. cxd4 {[%emt 0:00:03]} Rxd4 {[%emt 0:00:04]} 34. Qc1 {[%emt 0:00:14]} Qe2+ {[%emt 0:00:31]} 35. Kg1 {[%emt 0:00:22]} Rd1 {[%emt 0:00:21]} 0-1

[Event "RUS-chTW Premier 2019"]
[Site "Sochi"]
[Date "2019.05.08"]
[Round "7.9"]
[White "Sudakova, Irina"]
[Black "Badelka, Olga"]
[Result "0-1"]
[ECO "B24"]
[WhiteElo "2313"]
[BlackElo "2383"]
[Annotator "NA RC"]
[PlyCount "92"]
[EventDate "2019.04.30"]
[EventType "team-tourn"]
[EventCountry "RUS"]
[SourceTitle "playchess.com"]
[Source "ChessBase"]
[SourceQuality "1"]
[TimeControl "40/5400+30:1800+30"]

1. e4 {[%emt 0:00:00]} c5 {[%emt 0:00:00]} 2. Nc3 {[%emt 0:00:00]} Nc6 {[%emt 0:00:00]} 3. g3 {[%emt 0:00:07]} g6 {[%emt 0:00:40]} 4. Bg2 {[%emt 0:00:21]} Bg7 {[%emt 0:00:07]} 5. d3 {[%emt 0:00:21]} e6 {[%emt 0:00:46]} 6. Be3 {[%emt 0:00:49]} d6 {[%emt 0:00:12]} 7. Qd2 {[%emt 0:01:05]} Rb8 {[%emt 0:03:35]} 8. f4 {[%emt 0:02:08]} Nge7 {[%emt 0:00:38]} 9. Nf3 {[%emt 0:03:24]} Nd4 {[%emt 0:01:20]} 10. O-O {[%emt 0:01:40]} b5 {[%emt 0:01:41]} 11. Rae1 {[%emt 0:05:16]} b4 {[%emt 0:01:04]} 12. Nd1 {[%emt 0:00:33]} Qa5 {[%emt 0:04:03]} 13. a3 {[%emt 0:07:00]} Qa4 {[%emt 0:02:44]} 14. Bxd4 {[%emt 0:05:42]} cxd4 {[%emt 0:00:22]} 15. b3 {[%emt 0:01:23]} Qxa3 {[%emt 0:02:59]} 16. e5 {[%emt 0:02:56]} dxe5 {[%emt 0:03:42]} 17. fxe5 {[%emt 0:01:08]} Qa5 {[%emt 0:04:04]} 18. Qf4 {[%emt 0:13:03]} O-O {[%emt 0:07:30]} 19. Qxd4 {[%emt 0:07:07]} Qc7 {[%emt 0:09:13]} 20. Nf2 {[%emt 0:10:02]} Nf5 {[%emt 0:02:26]} 21. Qf4 {[%emt 0:11:19]} Qxc2 {[%emt 0:07:10]} 22. g4 {[%emt 0:06:34]} Ne7 {[%emt 0:11:11]} 23. Ne4 {[%emt 0:01:08]} Nd5 {[%emt 0:00:45]} 24. Qg3 {[%emt 0:00:20]} Bb7 {[%emt 0:02:34]} 25. g5 {[%emt 0:04:56]} Nc3 {[%emt 0:05:43]} 26. Nf6+ {[%emt 0:04:13]} Bxf6 {[%emt 0:02:08]} 27. gxf6 {[%emt 0:00:44]} Ne2+ {[%emt 0:03:21]} 28. Rxe2 {[%emt 0:00:06]} Qxe2 {[%emt 0:00:04]} 29. Qf4 {[%emt 0:00:58]} Kh8 {[%emt 0:00:40]} 30. Rf2 {[%emt 0:02:38]} Qd1+ {[%emt 0:00:56]} 31. Rf1 {[%emt 0:00:05]} Bxf3 {[%emt 0:01:40]} 32. Bxf3 {[%emt 0:06:20]} Qxd3 {[%emt 0:04:13]} 33. Rd1 {[%emt 0:00:51]} Qf5 {[%emt 0:03:16]} 34. Qh6 {[%emt 0:00:29]} Rg8 {[%emt 0:00:04]} 35. Rd4 {[%emt 0:00:18]} g5 {[%emt 0:01:11]} 36. Be4 {[%emt 0:01:01]} Rg6 {[%emt 0:05:10]} 37. Qg7+ {[%emt 0:01:40]} Rxg7 {[%emt 0:00:04]} 38. fxg7+ {[%emt 0:00:04]} Kxg7 {[%emt 0:00:03]} 39. Bxf5 {[%emt 0:00:05]} exf5 {[%emt 0:00:02]} 40. Rd7 {[%emt 0:00:00]} Re8 {[%emt 0:00:00]} 41. Rb7 {[%emt 0:00:58]} Rxe5 {[%emt 0:00:30]} 42. Rxb4 {[%emt 0:00:07]} a6 {[%emt 0:01:24]} 43. Ra4 {[%emt 0:00:43]} Rb5 {[%emt 0:00:07]} 44. Rxa6 {[%emt 0:00:21]} Rxb3 {[%emt 0:00:04]} 45. h4 {[%emt 0:00:11]} g4 {[%emt 0:00:10]} 46. h5 {[%emt 0:00:15]} Rh3 {[%emt 0:00:06]} 0-1